fUSD/lending_fUSD_20251123
["ID","MTS","AMOUNT","RATE_DAILY","PERIOD"]
[394719159,1763914237651,-8788.69665614,0.00038246,3]
[394719160,1763914237663,-915.99999978,0.00038246,3]
[394719168,1763914239469,-151.0,0.00034247,90]
[394719169,1763914239479,-2816.44575457,0.00036612,2]
[394719170,1763914239543,-227.72964543,0.00036612,2]
[394719171,1763914239553,-233.57175891,0.00038245,2]
[394719172,1763914239563,-13185.82443869,0.00038246,3]
[394719173,1763914239573,-150.0,0.00038247,7]
[394719174,1763914239583,-150.0,0.00038247,7]
[394719175,1763914239592,-9142.91155175,0.00038255,2]
[394719176,1763914239602,-500.0,0.00038255,8]
[394719177,1763914239612,-500.0,0.00038255,8]
[394719178,1763914239622,-500.0,0.00038255,8]
[394719179,1763914239631,-500.0,0.00038255,8]
[394719180,1763914239641,-500.0,0.00038255,8]
[394719181,1763914239652,-500.0,0.00038255,8]
[394719182,1763914239662,-500.0,0.00038255,8]
[394719183,1763914239673,-500.0,0.00038255,8]
[394719184,1763914239683,-500.0,0.00038255,8]
[394719185,1763914239693,-500.0,0.00038255,7]
[394719186,1763914239702,-500.0,0.00038255,7]
[394719187,1763914239712,-500.0,0.00038255,7]
[394719188,1763914239722,-500.0,0.00038255,8]
[394719189,1763914239732,-500.0,0.00038255,2]
[394719190,1763914239742,-500.0,0.00038255,2]
[394719191,1763914239752,-500.0,0.00038255,2]
[394719192,1763914239762,-500.0,0.00038255,2]
[394719193,1763914239772,-1157.11,0.00038255,2]
[394719194,1763914239782,-1157.11,0.00038255,2]
[394719195,1763914239792,-1157.11,0.00038255,2]
[394719196,1763914239802,-428563.47354854,0.00038256,2]
[394719197,1763914239818,-322.05176773,0.00038256,2]
[394719198,1763914239829,-298.51436949,0.00038256,2]
[394719200,1763914239841,-1427.5027801,0.00038256,2]
[394719202,1763914239853,-9794.69,0.00038256,2]
[394719205,1763914239869,-4480.8035198,0.00038256,2]
[394719207,1763914239880,-377.58142882,0.00038256,2]
[394719209,1763914239891,-949.309992,0.00038256,2]
[394719211,1763914239903,-874.29119443,0.00038256,2]
[394719214,1763914239914,-252.71494988,0.00038256,2]
[394719217,1763914239935,-6315.3454475,0.00038256,2]
[394719256,1763914243467,-649.75473244,0.00038256,2]
[394719257,1763914243478,-209299.7081066,0.00038256,2]
[394719258,1763914243490,-32189.7079647,0.00038256,2]
[394719259,1763914243580,-13556.74703545,0.00038256,2]
[394719261,1763914245222,-763.91352797,0.00038256,2]
[394719276,1763914245601,-27036.62676886,0.00038256,2]
[394719277,1763914245613,-22847.26286569,0.00038256,2]
[394719278,1763914245623,-167.48722276,0.00038256,2]
[394719279,1763914245632,-500.0,0.00038273,5]
[394719280,1763914245642,-1340.09635773,0.00038275,2]
[394719281,1763914245651,-2259.29211923,0.00038293,2]
[394719282,1763914245661,-152.53567174,0.00038318,2]
[394719283,1763914245671,-151.0,0.00038329,2]
[394719284,1763914245682,-151.0,0.00038329,2]
[394719285,1763914245692,-214.10440233,0.00038346,2]
[394719286,1763914245702,-500.0,0.00038355,8]
[394719287,1763914245711,-500.0,0.00038355,8]
[394719288,1763914245721,-500.0,0.00038355,7]
[394719289,1763914245730,-500.0,0.00038355,7]
[394719290,1763914245740,-500.0,0.00038355,8]
[394719291,1763914245749,-500.0,0.00038355,8]
[394719292,1763914245759,-500.0,0.00038355,8]
[394719293,1763914245768,-500.0,0.00038355,8]
[394719294,1763914245778,-500.0,0.00038355,8]
[394719295,1763914245787,-500.0,0.00038355,8]
[394719296,1763914245797,-500.0,0.00038355,8]
[394719297,1763914245807,-500.0,0.00038355,8]
[394719298,1763914245816,-500.0,0.00038355,8]
[394719299,1763914245826,-500.0,0.00038355,8]
[394719301,1763914245835,-500.0,0.00038355,8]
[394719303,1763914245844,-500.0,0.00038355,8]
[394719305,1763914245854,-500.0,0.00038355,8]
[394719307,1763914245863,-500.0,0.00038355,8]
[394719309,1763914245873,-500.0,0.00038355,8]
[394719311,1763914245883,-500.0,0.00038355,8]
[394719313,1763914245893,-500.0,0.00038355,8]
[394719315,1763914245903,-500.0,0.00038355,2]
[394719317,1763914245912,-500.0,0.00038355,2]
[394719319,1763914245921,-500.0,0.00038355,2]
[394719321,1763914245931,-500.0,0.00038355,2]
[394719323,1763914245941,-1157.11,0.00038355,2]
[394719325,1763914245950,-1157.11,0.00038355,2]
[394719327,1763914245960,-888.18,0.00038356,5]
[394719329,1763914245975,-3018.9911545,0.00038356,2]
[394719331,1763914245984,-500.0,0.00038356,8]
[394719333,1763914245994,-500.0,0.00038356,8]
[394719335,1763914246003,-452.51906606,0.00038356,8]
[394719337,1763914246012,-500.0,0.00038356,8]
[394719339,1763914246022,-500.0,0.00038356,7]
[394719341,1763914246032,-308.06780547,0.00038356,8]
[394719343,1763914246041,-500.83294889,0.00038356,8]
[394719345,1763914246051,-535.11103162,0.00038356,8]
[394719347,1763914246062,-500.08869546,0.00038356,8]
[394719349,1763914246071,-512.73497882,0.00038356,8]
[394719351,1763914246082,-500.0,0.00038356,8]
[394719353,1763914246092,-500.0,0.00038356,8]
[394719355,1763914246102,-500.0,0.00038356,8]
[394719358,1763914246112,-504.77283556,0.00038356,8]
[394719360,1763914246121,-500.0,0.00038356,8]
[394719362,1763914246131,-500.0,0.00038356,8]
[394719364,1763914246140,-500.0,0.00038356,8]
[394719366,1763914246150,-500.0,0.00038356,8]
[394719368,1763914246160,-500.0,0.00038356,8]
[394719370,1763914246169,-500.0,0.00038356,8]
[394719372,1763914246182,-500.0,0.00038356,8]
[394719374,1763914246191,-500.0,0.00038356,8]
[394719376,1763914246201,-500.0,0.00038356,8]
[394719378,1763914246210,-500.0,0.00038356,8]
[394719380,1763914246219,-500.0,0.00038356,8]
[394719382,1763914246228,-500.0,0.00038356,8]
[394719384,1763914246238,-500.0,0.00038356,8]
[394719386,1763914246247,-500.0,0.00038356,8]
[394719388,1763914246257,-500.0,0.00038356,8]
[394719390,1763914246267,-500.0,0.00038356,8]
[394719392,1763914246276,-500.0,0.00038356,8]
[394719400,1763914246350,-500.0,0.00038356,7]
[394719402,1763914246360,-505.4314058,0.00038356,8]
[394719404,1763914246370,-500.0,0.00038356,8]
[394719406,1763914246380,-500.0,0.00038356,8]
[394719408,1763914246394,-500.0,0.00038356,8]
[394719410,1763914246404,-500.0,0.00038356,8]
[394719412,1763914246413,-500.0,0.00038356,8]
[394719414,1763914246423,-500.0,0.00038356,8]
[394719416,1763914246434,-500.0,0.00038356,8]
[394719418,1763914246443,-388.11310878,0.00038356,8]
[394719420,1763914246453,-500.0,0.00038356,8]
[394719422,1763914246463,-504.76333007,0.00038356,8]
[394719424,1763914246473,-500.0,0.00038356,8]
[394719426,1763914246483,-500.0,0.00038356,8]
[394719428,1763914246492,-500.0,0.00038356,8]
[394719430,1763914246502,-500.0,0.00038356,8]
[394719432,1763914246511,-500.0,0.00038356,8]
[394719434,1763914246520,-500.0,0.00038356,8]
[394719436,1763914246529,-500.0,0.00038356,8]
[394719438,1763914246539,-282.33671748,0.00038356,8]
[394719440,1763914246548,-500.0,0.00038356,8]
[394719442,1763914246557,-500.0,0.00038356,8]
[394719444,1763914246566,-500.0,0.00038356,8]
[394719446,1763914246576,-500.0,0.00038356,8]
[394719448,1763914246585,-500.0,0.00038356,8]
[394719450,1763914246595,-500.0,0.00038356,8]
[394719452,1763914246604,-1244.28644549,0.00038356,2]
[394719454,1763914246614,-500.0,0.00038356,8]
[394719456,1763914246623,-200.0,0.00038356,2]
[394719458,1763914246632,-294.53852323,0.00038356,8]
[394719460,1763914246642,-500.0,0.00038356,8]
[394719462,1763914246651,-613.9,0.00038356,8]
[394719464,1763914246660,-500.0,0.00038356,8]
[394719466,1763914246670,-444.0584968,0.00038356,8]
[394719468,1763914246681,-500.0,0.00038356,8]
[394719470,1763914246690,-634.7519145,0.00038356,8]
[394719472,1763914246700,-500.0,0.00038356,8]
[394719474,1763914246709,-500.0,0.00038356,8]
[394719476,1763914246719,-500.0,0.00038356,8]
[394719478,1763914246728,-500.0,0.00038356,8]
[394719480,1763914246738,-500.0,0.00038356,8]
[394719482,1763914246747,-500.0,0.00038356,8]
[394719484,1763914246756,-500.0,0.00038356,8]
[394719486,1763914246765,-500.0,0.00038356,8]
[394719488,1763914246774,-500.0,0.00038356,8]
[394719490,1763914246784,-500.0,0.00038356,8]
[394719492,1763914246793,-500.0,0.00038356,8]
[394719493,1763914246803,-500.0,0.00038356,8]
[394719494,1763914246812,-500.0,0.00038356,8]
[394719495,1763914246821,-500.0,0.00038356,8]
[394719496,1763914246831,-2200.0,0.00038356,120]
[394719497,1763914246841,-521.30694343,0.00038356,8]
[394719498,1763914246851,-500.0,0.00038356,8]
[394719499,1763914246861,-825.71,0.00038356,8]
[394719500,1763914246870,-500.0,0.00038356,8]
[394719501,1763914246881,-500.0,0.00038356,8]
[394719502,1763914246890,-500.0,0.00038356,8]
[394719503,1763914246901,-500.0,0.00038356,2]
[394719504,1763914246911,-735.3,0.00038356,8]
[394719505,1763914246920,-500.0,0.00038356,8]
[394719506,1763914246932,-500.0,0.00038356,8]
[394719507,1763914246941,-585.01,0.00038356,8]
[394719508,1763914246951,-500.0,0.00038356,8]
[394719509,1763914246960,-500.0,0.00038356,2]
[394719510,1763914246970,-507.4379687,0.00038356,8]
[394719511,1763914246980,-500.0,0.00038356,8]
[394719512,1763914246989,-500.0,0.00038356,8]
[394719513,1763914246999,-500.0,0.00038356,8]
[394719514,1763914247008,-642.58,0.00038356,8]
[394719515,1763914247018,-500.0,0.00038356,8]
[394719516,1763914247027,-500.0,0.00038356,8]
[394719517,1763914247037,-500.0,0.00038356,8]
[394719518,1763914247050,-823.42,0.00038356,8]
[394719519,1763914247060,-500.0,0.00038356,8]
[394719520,1763914247070,-500.0,0.00038356,8]
[394719521,1763914247080,-430.32274226,0.00038356,8]
[394719522,1763914247090,-500.0,0.00038356,8]
[394719523,1763914247100,-500.0,0.00038356,8]
[394719524,1763914247110,-500.0,0.00038356,8]
[394719525,1763914247120,-500.0,0.00038356,8]
[394719526,1763914247130,-500.0,0.00038356,8]
[394719527,1763914247140,-500.0,0.00038356,8]
[394719528,1763914247149,-500.0,0.00038356,8]
[394719529,1763914247159,-500.0,0.00038356,8]
[394719530,1763914247169,-500.0,0.00038356,8]
[394719531,1763914247179,-500.0,0.00038356,8]
[394719532,1763914247189,-985.0,0.00038356,8]
[394719533,1763914247199,-503.85176969,0.00038356,8]
[394719534,1763914247209,-500.0,0.00038356,8]
[394719535,1763914247219,-500.0,0.00038356,8]
[394719536,1763914247230,-500.0,0.00038356,8]
[394719537,1763914247240,-403.07363366,0.00038356,8]
[394719538,1763914247250,-500.0,0.00038356,8]
[394719539,1763914247260,-500.0,0.00038356,8]
[394719540,1763914247270,-502.73061304,0.00038356,8]
[394719541,1763914247280,-500.0,0.00038356,8]
[394719542,1763914247290,-500.0,0.00038356,8]
[394719543,1763914247300,-500.0,0.00038356,8]
[394719544,1763914247309,-486.50463625,0.00038356,8]
[394719545,1763914247319,-612.34876312,0.00038356,8]
[394719546,1763914247328,-500.0,0.00038356,8]
[394719547,1763914247338,-500.0,0.00038356,8]
[394719548,1763914247348,-500.0,0.00038356,8]
[394719549,1763914247358,-868.33,0.00038356,8]
[394719550,1763914247367,-176.65937095,0.00038356,8]
[394719551,1763914247378,-391.4072665,0.00038356,8]
[394719552,1763914247390,-1093.61,0.00038356,8]
[394719553,1763914247400,-508.99293873,0.00038356,8]
[394719554,1763914247410,-500.0,0.00038356,8]
[394719555,1763914247419,-1200.51,0.00038356,8]
[394719556,1763914247430,-500.0,0.00038356,8]
[394719557,1763914247440,-500.0,0.00038356,8]
[394719558,1763914247449,-500.0,0.00038356,8]
[394719559,1763914247459,-500.0,0.00038356,8]
[394719560,1763914247470,-506.06605278,0.00038356,8]
[394719561,1763914247480,-500.0,0.00038356,8]
[394719562,1763914247490,-500.0,0.00038356,8]
[394719563,1763914247499,-586.09,0.00038356,8]
[394719564,1763914247509,-500.0,0.00038356,8]
[394719565,1763914247519,-500.0,0.00038356,8]
[394719566,1763914247529,-500.0,0.00038356,8]
[394719567,1763914247538,-500.0,0.00038356,8]
[394719568,1763914247548,-500.0,0.00038356,8]
[394719569,1763914247557,-500.0,0.00038356,8]
[394719570,1763914247567,-500.0,0.00038356,8]
[394719571,1763914247576,-719.1,0.00038356,8]
[394719572,1763914247585,-500.0,0.00038356,8]
[394719573,1763914247595,-500.0,0.00038356,8]
[394719574,1763914247604,-500.0,0.00038356,8]
[394719575,1763914247614,-500.0,0.00038356,8]
[394719576,1763914247624,-500.0,0.00038356,8]
[394719577,1763914247633,-500.0,0.00038356,8]
[394719578,1763914247643,-500.0,0.00038356,8]
[394719579,1763914247652,-500.0,0.00038356,2]
[394719580,1763914247660,-733.65,0.00038356,8]
[394719581,1763914247669,-169.03699137,0.00038356,8]
[394719582,1763914247679,-817.22,0.00038356,8]
[394719583,1763914247689,-500.0,0.00038356,8]
[394719584,1763914247697,-646.94,0.00038356,8]
[394719585,1763914247707,-500.0,0.00038356,8]
[394719586,1763914247716,-500.0,0.00038356,8]
[394719587,1763914247725,-500.0,0.00038356,8]
[394719588,1763914247735,-500.0,0.00038356,8]
[394719589,1763914247744,-817.61,0.00038356,2]
[394719590,1763914247754,-500.0,0.00038356,8]
[394719591,1763914247764,-575.60209108,0.00038356,8]
[394719592,1763914247774,-617.18,0.00038356,8]
[394719593,1763914247783,-500.0,0.00038356,8]
[394719594,1763914247792,-500.0,0.00038356,8]
[394719595,1763914247801,-500.0,0.00038356,8]
[394719596,1763914247811,-500.0,0.00038356,8]
[394719597,1763914247821,-609.64137183,0.00038356,8]
[394719598,1763914247830,-500.0,0.00038356,8]
[394719599,1763914247839,-500.0,0.00038356,8]
[394719600,1763914247848,-500.0,0.00038356,8]
[394719601,1763914247858,-500.0,0.00038356,8]
[394719602,1763914247868,-500.0,0.00038356,8]
[394719603,1763914247878,-500.0,0.00038356,8]
[394719604,1763914247887,-500.0,0.00038356,8]
[394719605,1763914247896,-500.0,0.00038356,8]
[394719606,1763914247906,-500.0,0.00038356,8]
[394719607,1763914247916,-500.0,0.00038356,8]
[394719608,1763914247926,-979.71,0.00038356,8]
[394719609,1763914247936,-500.0,0.00038356,8]
[394719610,1763914247945,-500.0,0.00038356,8]
[394719611,1763914247954,-500.0,0.00038356,8]
[394719612,1763914247965,-550.93,0.00038356,8]
[394719613,1763914247975,-500.0,0.00038356,8]
[394719614,1763914247984,-500.0,0.00038356,8]
[394719615,1763914247994,-500.0,0.00038356,8]
[394719616,1763914248003,-500.0,0.00038356,8]
[394719617,1763914248013,-565.81188306,0.00038356,8]
[394719618,1763914248023,-500.0,0.00038356,8]
[394719619,1763914248032,-500.0,0.00038356,8]
[394719620,1763914248042,-500.0,0.00038356,8]
[394719621,1763914248051,-500.0,0.00038356,8]
[394719622,1763914248061,-500.0,0.00038356,8]
[394719623,1763914248070,-454.76486411,0.00038356,8]
[394719624,1763914248080,-500.0,0.00038356,8]
[394719625,1763914248090,-500.0,0.00038356,8]
[394719626,1763914248099,-500.0,0.00038356,8]
[394719627,1763914248108,-500.0,0.00038356,8]
[394719628,1763914248117,-828.2,0.00038356,8]
[394719629,1763914248127,-500.0,0.00038356,8]
[394719630,1763914248137,-478.49091463,0.00038356,8]
[394719631,1763914248147,-500.0,0.00038356,8]
[394719632,1763914248158,-500.0,0.00038356,8]
[394719633,1763914248167,-505.53114317,0.00038356,8]
[394719634,1763914248177,-500.0,0.00038356,8]
[394719635,1763914248188,-500.0,0.00038356,8]
[394719636,1763914248198,-500.0,0.00038356,8]
[394719637,1763914248208,-522.29,0.00038356,8]
[394719638,1763914248216,-500.0,0.00038356,8]
[394719639,1763914248225,-507.8936805,0.00038356,8]
[394719640,1763914248235,-500.0,0.00038356,8]
[394719641,1763914248245,-500.0,0.00038356,8]
[394719642,1763914248255,-1007.16,0.00038356,8]
[394719643,1763914248265,-711.26,0.00038356,8]
[394719644,1763914248275,-500.0,0.00038356,8]
[394719645,1763914248284,-500.0,0.00038356,8]
[394719646,1763914248294,-500.0,0.00038356,8]
[394719647,1763914248304,-500.0,0.00038356,8]
[394719648,1763914248314,-500.0,0.00038356,8]
[394719649,1763914248323,-500.0,0.00038356,8]
[394719650,1763914248333,-500.0,0.00038356,8]
[394719651,1763914248343,-503.55,0.00038356,8]
[394719652,1763914248352,-500.0,0.00038356,8]
[394719653,1763914248362,-500.0,0.00038356,8]
[394719654,1763914248371,-500.0,0.00038356,8]
[394719655,1763914248382,-755.18,0.00038356,8]
[394719656,1763914248396,-500.0,0.00038356,8]
[394719657,1763914248406,-200.0,0.00038356,2]
[394719658,1763914248416,-500.0,0.00038356,8]
[394719659,1763914248427,-500.0,0.00038356,8]
[394719660,1763914248438,-500.0,0.00038356,8]
[394719661,1763914248447,-500.0,0.00038356,8]
[394719662,1763914248457,-500.0,0.00038356,8]
[394719663,1763914248468,-526.43778965,0.00038356,8]
[394719664,1763914248477,-500.0,0.00038356,8]
[394719665,1763914248487,-500.0,0.00038356,8]
[394719666,1763914248496,-611.33,0.00038356,8]
[394719667,1763914248505,-703.52,0.00038356,8]
[394719668,1763914248515,-500.0,0.00038356,8]
[394719669,1763914248524,-500.0,0.00038356,8]
[394719670,1763914248533,-500.0,0.00038356,8]
[394719671,1763914248542,-500.0,0.00038356,8]
[394719672,1763914248551,-500.0,0.00038356,8]
[394719673,1763914248560,-500.0,0.00038356,8]
[394719674,1763914248569,-500.0,0.00038356,8]
[394719675,1763914248578,-500.0,0.00038356,8]
[394719676,1763914248587,-500.0,0.00038356,8]
[394719677,1763914248596,-893.68,0.00038356,8]
[394719678,1763914248605,-500.0,0.00038356,8]
[394719679,1763914248613,-500.0,0.00038356,8]
[394719680,1763914248622,-500.0,0.00038356,8]
[394719681,1763914248631,-500.0,0.00038356,8]
[394719682,1763914248640,-500.0,0.00038356,8]
[394719683,1763914248649,-500.0,0.00038356,8]
[394719684,1763914248658,-500.0,0.00038356,8]
[394719685,1763914248667,-500.0,0.00038356,8]
[394719686,1763914248676,-590.0,0.00038356,8]
[394719687,1763914248685,-733.18,0.00038356,8]
[394719688,1763914248695,-513.54981595,0.00038356,8]
[394719689,1763914248704,-500.0,0.00038356,8]
[394719690,1763914248713,-500.0,0.00038356,8]
[394719691,1763914248723,-500.0,0.00038356,8]
[394719692,1763914248732,-1208.53,0.00038356,8]
[394719693,1763914248742,-500.0,0.00038356,8]
[394719694,1763914248752,-504.09988166,0.00038356,8]
[394719695,1763914248761,-502.78110264,0.00038356,8]
[394719696,1763914248770,-500.0,0.00038356,8]
[394719697,1763914248780,-500.0,0.00038356,8]
[394719698,1763914248789,-500.0,0.00038356,8]
[394719699,1763914248798,-500.0,0.00038356,8]
[394719700,1763914248807,-500.0,0.00038356,8]
[394719701,1763914248816,-500.0,0.00038356,8]
[394719702,1763914248825,-500.0,0.00038356,8]
[394719703,1763914248835,-500.0,0.00038356,8]
[394719704,1763914248844,-500.0,0.00038356,8]
[394719705,1763914248854,-500.0,0.00038356,8]
[394719706,1763914248863,-500.0,0.00038356,8]
[394719707,1763914248872,-521.99,0.00038356,8]
[394719708,1763914248881,-1064.27,0.00038356,2]
[394719709,1763914248891,-654.1,0.00038356,8]
[394719710,1763914248900,-500.0,0.00038356,8]
[394719711,1763914248909,-500.0,0.00038356,8]
[394719712,1763914248919,-500.61325379,0.00038356,8]
[394719713,1763914248929,-500.0,0.00038356,8]
[394719714,1763914248939,-500.0,0.00038356,8]
[394719715,1763914248948,-547.20436705,0.00038356,8]
[394719716,1763914248958,-500.0,0.00038356,8]
[394719717,1763914248967,-500.0,0.00038356,8]
[394719718,1763914248976,-546.26,0.00038356,8]
[394719719,1763914248987,-500.0,0.00038356,8]
[394719720,1763914248996,-865.77,0.00038356,8]
[394719721,1763914249006,-500.0,0.00038356,8]
[394719722,1763914249016,-500.0,0.00038356,8]
[394719723,1763914249026,-500.0,0.00038356,8]
[394719724,1763914249036,-969.94,0.00038356,8]
[394719725,1763914249045,-500.0,0.00038356,8]
[394719726,1763914249055,-500.0,0.00038356,8]
[394719727,1763914249065,-500.0,0.00038356,8]
[394719728,1763914249075,-500.0,0.00038356,8]
[394719729,1763914249084,-1149.4,0.00038356,8]
[394719730,1763914249094,-500.0,0.00038356,8]
[394719731,1763914249103,-500.0,0.00038356,8]
[394719732,1763914249112,-500.0,0.00038356,8]
[394719733,1763914249122,-500.0,0.00038356,8]
[394719734,1763914249132,-500.0,0.00038356,8]
[394719735,1763914249142,-833.29,0.00038356,8]
[394719736,1763914249151,-618.22,0.00038356,8]
[394719737,1763914249160,-500.0,0.00038356,8]
[394719738,1763914249170,-500.0,0.00038356,8]
[394719739,1763914249180,-500.0,0.00038356,8]
[394719740,1763914249190,-500.0,0.00038356,8]
[394719741,1763914249199,-500.0,0.00038356,8]
[394719742,1763914249209,-500.0,0.00038356,8]
[394719743,1763914249218,-1170.62,0.00038356,8]
[394719744,1763914249228,-500.0,0.00038356,8]
[394719745,1763914249237,-500.0,0.00038356,8]
[394719746,1763914249248,-537.81747704,0.00038356,8]
[394719747,1763914249258,-588.73,0.00038356,8]
[394719748,1763914249268,-500.0,0.00038356,8]
[394719749,1763914249277,-500.0,0.00038356,8]
[394719750,1763914249287,-285.07504811,0.00038356,8]
[394719751,1763914249297,-500.0,0.00038356,8]
[394719752,1763914249307,-500.0,0.00038356,8]
[394719753,1763914249317,-500.0,0.00038356,8]
[394719754,1763914249327,-500.0,0.00038356,8]
[394719755,1763914249337,-345.31881833,0.00038356,8]
[394719756,1763914249347,-500.0,0.00038356,8]
[394719757,1763914249357,-500.0,0.00038356,8]
[394719758,1763914249367,-500.0,0.00038356,8]
[394719759,1763914249377,-500.0,0.00038356,8]
[394719760,1763914249389,-500.0,0.00038356,8]
[394719761,1763914249400,-500.0,0.00038356,8]
[394719762,1763914249410,-155.92497515,0.00038356,8]
[394719763,1763914249419,-500.0,0.00038356,8]
[394719764,1763914249433,-508.65479268,0.00038356,8]
[394719765,1763914249443,-500.0,0.00038356,8]
[394719766,1763914249452,-500.0,0.00038356,8]
[394719767,1763914249462,-594.14,0.00038356,8]
[394719768,1763914249474,-500.0,0.00038356,8]
[394719769,1763914249483,-500.0,0.00038356,8]
[394719770,1763914249493,-500.0,0.00038356,8]
[394719771,1763914249503,-500.0,0.00038356,8]
[394719772,1763914249513,-567.18065228,0.00038356,8]
[394719773,1763914249523,-638.3711193,0.00038356,8]
[394719774,1763914249532,-500.0,0.00038356,8]
[394719775,1763914249542,-815.17,0.00038356,8]
[394719776,1763914249552,-500.0,0.00038356,8]
[394719777,1763914249562,-500.0,0.00038356,8]
[394719778,1763914249571,-907.54,0.00038356,8]
[394719779,1763914249581,-161.36562518,0.00038356,8]
[394719780,1763914249592,-500.0,0.00038356,8]
[394719781,1763914249601,-500.0,0.00038356,8]
[394719782,1763914249611,-500.0,0.00038356,8]
[394719783,1763914249620,-500.0,0.00038356,8]
[394719784,1763914249630,-500.0,0.00038356,8]
[394719785,1763914249639,-500.0,0.00038356,8]
[394719786,1763914249649,-500.0,0.00038356,8]
[394719787,1763914249659,-500.0,0.00038356,8]
[394719788,1763914249669,-500.0,0.00038356,8]
[394719789,1763914249679,-429.49337666,0.00038356,8]
[394719790,1763914249689,-500.0,0.00038356,8]
[394719791,1763914249698,-500.0,0.00038356,8]
[394719792,1763914249708,-500.0,0.00038356,8]
[394719793,1763914249718,-500.0,0.00038356,8]
[394719794,1763914249729,-500.0,0.00038356,8]
[394719795,1763914249739,-500.0,0.00038356,8]
[394719796,1763914249749,-500.0,0.00038356,8]
[394719797,1763914249759,-691.07,0.00038356,8]
[394719798,1763914249769,-500.0,0.00038356,8]
[394719799,1763914249779,-500.0,0.00038356,8]
[394719800,1763914249789,-500.0,0.00038356,8]
[394719801,1763914249798,-769.67,0.00038356,8]
[394719802,1763914249808,-516.84,0.00038356,8]
[394719803,1763914249818,-500.0,0.00038356,8]
[394719804,1763914249828,-500.0,0.00038356,8]
[394719805,1763914249838,-500.0,0.00038356,8]
[394719806,1763914249848,-500.0,0.00038356,8]
[394719807,1763914249858,-505.18213026,0.00038356,8]
[394719808,1763914249868,-233.24901601,0.00038356,8]
[394719809,1763914249878,-533.00272084,0.00038356,8]
[394719810,1763914249888,-500.0,0.00038356,8]
[394719811,1763914249898,-691.5,0.00038356,8]
[394719812,1763914249908,-500.0,0.00038356,8]
[394719813,1763914249918,-500.0,0.00038356,8]
[394719814,1763914249928,-500.0,0.00038356,8]
[394719815,1763914249937,-500.0,0.00038356,10]
[394719816,1763914249948,-500.0,0.00038356,8]
[394719817,1763914249958,-500.0,0.00038356,8]
[394719818,1763914249968,-500.0,0.00038356,8]
[394719819,1763914249978,-500.0,0.00038356,8]
[394719820,1763914249988,-500.0,0.00038356,8]
[394719821,1763914249999,-500.0,0.00038356,8]
[394719822,1763914250009,-600.59,0.00038356,8]
[394719823,1763914250019,-500.0,0.00038356,8]
[394719824,1763914250029,-500.0,0.00038356,8]
[394719825,1763914250039,-500.0,0.00038356,8]
[394719826,1763914250050,-500.0,0.00038356,8]
[394719827,1763914250059,-404.36335726,0.00038356,8]
[394719828,1763914250069,-500.0,0.00038356,8]
[394719829,1763914250079,-525.49,0.00038356,8]